{"text_format":"1","workbook":"xlsx","n_sheets":5,"sheets":["Introduction","Données","Résultats I","Résultats II","Tarifs"],"not_rendered":{"charts":0,"images":3,"macros":1,"external_links":0,"defined_names":66,"comments":0,"pivot_tables":0},"unopened":[],"bounds":{"document_bytes":16777216,"sheet_cells":100000,"rows_first":2000,"rows_last":500,"rows_between":2000,"halvings":0,"cell_chars":16384,"cell_head_chars":4096},"cells_cut":0,"cells_raw":0,"read":"whole","date_system":"1900"}

{"sheet":"Introduction","index":0,"n_rows":49,"n_cols":4,"rows_kept":49,"cut":false,"hidden":false,"merged":[]}
[]
[]
[]
[]
[]
[]
[null,null,null,"Pour une utilisation optimale de ce fichier, veuillez le sauver dans votre répertoire avant de l'utiliser."]
[]
[null,null,null,"Le présent simulateur est destiné à mettre à disposition des acteurs de marché un complément"]
[null,null,null,"d'information relatif aux modalités d'application des tarifs pour l'accès au réseau (*), des tarifs pour"]
[null,null,null,"les obligations de service public et des taxes et surcharges."]
[null,null,null,"Ne sont pas visés par ce programme : les tarifs de raccordement et les tarifs de compensation des"]
[null,null,null,"déséquilibres quart-horaires."]
[]
[null,null,null,"La simulation illustre le calcul des montants liés à l'accès au réseau d'Elia par des utilisateurs raccordés"]
[null,null,null,"à ce niveau. Elle tient également compte de la région dans laquelle se situe le point d'accès considéré,"]
[null,null,null,"le niveau d'infrastructure et le type de point d'accès."]
[]
[null,null,null,"Les tarifs sont d'application du 1er janvier 2020 au 31 décembre 2020. "]
[]
[null,null,null,"La simulation est destinée aux clients directement connectés au réseau d'Elia, avec ou sans"]
[null,null,null,"production locale située au même point d'accès.  La simulation n'est pas destinée aux gestionnaires de réseau de distribution."]
[]
[null,null,null,"La simulation n'est pas destinée aux point d'accès en offshore raccordés sur le MOG et les points d'accès au GD du Luxembourg.  Si vous souhaitez recevoir une simulation pour ces points d'accès, veuillez contacter votre KAM."]
[]
[null,null,null,"Pour utiliser le programme, introduisez d'abord les caractéristiques du profil d'accès sur la"]
[null,null,null,"feuille \"Données\". Les résultats peuvent alors être consultés sur les feuilles \"Résultats I\" (tarifs"]
[null,null,null,"applicables au point d'accès considéré) et \"Résultats II\" (montants liés aux termes pour l'accès au réseau,"]
[null,null,null,"pour les obligations de service public et pour les taxes et surcharges pour le point d'accès considéré)."]
[]
[]
[]
[null,null,null,"(*)   Hors le tarif du complément d'énergie réactive et le tarif pour dépassement éventuel"]
[null,null,null,"de la puissance mise à disposition."]
[]
[]
[]
[null,null,null,"Disclaimer :"]
[]
[null,null,null,"Le présent fichier et l'information qu'il contient, notamment les tarifs mentionnés, sont mis à disposition"]
[null,null,null,"des utilisateurs à titre purement informatif. Cette information vise à faciliter l'estimation des montants liés"]
[null,null,null,"à l'utilisation du réseau par un utilisateur raccordé en un point donné. Ni les informations contenues dans"]
[null,null,null,"le présent fichier, ni les tarifs, ni les résultats affichés ne sont de nature contractuelle. Ces éléments ne"]
[null,null,null,"constituent pas une offre préalable à la conclusion d'un contrat et n'engagent Elia en aucune manière."]
[]
[null,null,null,"Elia ne fournit aucune garantie quant au caractère adéquat, à l'exactitude ou au caractère complet des"]
[null,null,null,"informations communiquées et/ou calculées, ni sur la période de validité des tarifs utilisés. Elia ne peut"]
[null,null,null,"être tenue responsable des conséquences résultant du caractère éventuellement incomplet, incorrect ou"]
[null,null,null,"non à jour des informations et tarifs repris dans ce fichier."]

{"sheet":"Données","index":1,"n_rows":97,"n_cols":17,"rows_kept":97,"cut":false,"hidden":false,"merged":[[36,9,36,11],[9,6,9,10],[11,6,11,7],[13,6,13,7],[14,7,14,10],[25,9,25,11],[26,9,26,11],[27,9,27,11],[35,9,35,11],[64,8,64,10],[65,8,65,10],[47,6,47,10],[61,8,61,10],[62,8,62,10],[63,8,63,10],[91,6,91,8],[72,8,72,10],[66,8,66,10],[67,8,67,10],[68,8,68,10],[69,8,69,10],[70,8,70,10],[71,8,71,10]]}
[]
[]
[null,null,"  Données à remplir par l'utilisateur"]
[]
[null,null,null,"1. Caractéristiques du point d'accès"]
[]
[null,null,null,null,"Introduisez ci-après le niveau d’infrastructure, la région et le type de point d'accès."]
[]
[]
[null,null,null,null,"Niveau d’infrastructure :",null,"En réseau 380/220/150 kV"]
[]
[null,null,null,null,"Région :",null,"Bruxelles Capitale"]
[]
[null,null,null,null,"Type de point d'accès:",null,"Principal"]
[]
[null,null,null,"2. Pointes nettes prélevées (en MW)"]
[]
[null,null,null,null,"Introduisez ci-après les pointes de prélèvement net réalisées par mois (colonne A)."]
[null,null,null,null,"Introduisez également les pointes de prélèvement net réalisées pendant les heures de 17 à 20, hors"]
[null,null,null,null,"week-end et jours fériés, uniquement pendant les mois de janvier à mars et de novembre à décembre (colonne B)."]
[]
[null,null,null,null,"N.B. : Par mois, la valeur dans la colonne B est toujours plus petite ou égale à la valeur dans la colonne A"]
[null,null,null,null,"          pour l'année 2020."]
[]
[null,null,null,null,null,"A\n(année 2020)","B\n(année 2019)","B\n(année 2020)","Pointe\nannuelle"]
[null,null,null,null,"Janvier",null,null,null,{"$f":"MAX($G$27:$G$37,H26)","v":0},{"$f":"IF(H26>F26,\"Pointes A et B incompatibles\",\"\")","v":""}]
[null,null,null,null,"Février",null,null,null,{"$f":"MAX($G28:$G$37,H$26:H27)","v":0},{"$f":"IF(H27>F27,\"Pointes A et B incompatibles\",\"\")","v":""}]
[null,null,null,null,"Mars",null,null,null,{"$f":"MAX($G29:$G$37,H$26:H28)","v":0},{"$f":"IF(H28>F28,\"Pointes A et B incompatibles\",\"\")","v":""}]
[null,null,null,null,"Avril",null,null,null,{"$f":"MAX($G30:$G$37,H$26:H29)","v":0}]
[null,null,null,null,"Mai",null,null,null,{"$f":"MAX($G31:$G$37,H$26:H30)","v":0}]
[null,null,null,null,"Juin",null,null,null,{"$f":"MAX($G32:$G$37,H$26:H31)","v":0}]
[null,null,null,null,"Juillet",null,null,null,{"$f":"MAX($G33:$G$37,H$26:H32)","v":0}]
[null,null,null,null,"Août",null,null,null,{"$f":"MAX($G34:$G$37,H$26:H33)","v":0}]
[null,null,null,null,"Septembre",null,null,null,{"$f":"MAX($G35:$G$37,H$26:H34)","v":0}]
[null,null,null,null,"Octobre",null,null,null,{"$f":"MAX($G36:$G$37,H$26:H35)","v":0}]
[null,null,null,null,"Novembre",null,null,null,{"$f":"MAX($G37:$G$37,H$26:H36)","v":0},{"$f":"IF(H36>F36,\"Pointes A et B incompatibles\",\"\")","v":""}]
[null,null,null,null,"Décembre",null,null,null,{"$f":"MAX(H$26:H37)","v":0},{"$f":"IF(H37>F37,\"Pointes A et B incompatibles\",\"\")","v":""}]
[]
[]
[null,null,null,"3. Puissance mise à disposition (en MVA)"]
[]
[null,null,null,null,"Introduisez ci-après la puissance mise à disposition du point de prélèvement."]
[]
[null,null,null,null,"N.B. : La puissance mise à disposition doit être au minimum égale à la pointe prélevée maximale"]
[null,null,null,null,"         de l'année. La puissance mise à disposition doit tenir compte du facteur de puissance des installations"]
[null,null,null,null,"         raccordées derrière le point d'accès au réseau."]
[]
[null,null,null,null,null,null,{"$f":"IF(F48<MAX(F26:F37),\"        Erreur: plus bas que la pointe maximale 2019\",\"\")","v":""}]
[]
[]
[null,null,null,"4. Energies nettes prélevées (en MWh)"]
[]
[null,null,null,null,"Introduisez ci-après les énergies nettes prélevées par mois."]
[]
[null,null,null,null,"Si vous le désirez, vous pouvez introduire un % d'utilisation pour calcul automatique des énergies mensuelles"]
[null,null,null,null,"sur base des pointes nettes prélevées introduites ci-dessus et ensuite actionner le bouton.",null,null,null,null,null,null,null,null,null,null,null," "]
[]
[null,null,null,null,null,1]
[]
[]
[null,null,null,null,null,"Nombre d'heures du mois","Energie mensuelle maximale","Energie mensuelle "]
[null,null,null,null,"Janvier",744,{"$f":"F26*F62","v":0},null,{"$f":"IF(H62>G62,\"Energie et pointe incompatibles\",\"\")","v":""}]
[null,null,null,null,"Février",696,{"$f":"F27*F63","v":0},null,{"$f":"IF(H63>G63,\"Energie et pointe incompatibles\",\"\")","v":""}]
[null,null,null,null,"Mars",743,0,null,""]
[null,null,null,null,"Avril",720,0,null,""]
[null,null,null,null,"Mai",744,0,null,""]
[null,null,null,null,"Juin",720,0,null,""]
[null,null,null,null,"Juillet",744,0,null,""]
[null,null,null,null,"Août",744,0,null,""]
[null,null,null,null,"Septembre",720,0,null,""]
[null,null,null,null,"Octobre",745,0,null,""]
[null,null,null,null,"Novembre",720,0,null,""]
[null,null,null,null,"Décembre",744,0,null,""]
[null,null,null,null,null,null,null,{"$f":"SUM(H62:H73)","v":0}]
[]
[]
[null,null,null,"5. Energie nette injectée (en MWh)"]
[]
[null,null,null,null,"Introduisez ci-après l'énergie nette injectée pour l'année, si d'application."]
[]
[]
[]
[]
[null,null,null,"6. Données relatives aux surcharges"]
[]
[null,null,null,null,"Etes-vous détenteur d'accès ?",null,"Non"]
[]
[null,null,null,null,"Avez-vous un accord de branche ?",null,"Non","   Pris en compte dans calcul si détenteur d'accès"]
[]
[null,null,null,null,"Avez-vous un convenant (Kyoto) ?",null,"Non","   Pris en compte dans calcul si détenteur d'accès"]
[]
[null,null,null,null,"Quel est votre type d'activité ?",null,"Autre"]
[null,null,null,null,null,null,null,"   Pris en compte dans calcul si détenteur d'accès, en Wallonie"]
[null,null,null,null,null,null,null,"   et accord de branche et/ou convenant"]
[]
[null,null,null,null,"Merci !"]
[null,null,null,null,"Les résultats peuvent être consultés sur les feuilles \"Résultats I\" et \"Résultats II\"."]

{"sheet":"Résultats I","index":2,"n_rows":68,"n_cols":5,"rows_kept":68,"cut":false,"hidden":false,"merged":[]}
[]
[]
[null,"Tarifs pour :"]
[null,"Type de client :","Client directement raccordé au réseau Elia"]
[null,"Niveau d'infrastructure : ",{"$f":"D_Tension","v":"En réseau 380/220/150 kV"}]
[null,"Région : ",{"$f":"D_Region","v":"Bruxelles Capitale"}]
[null,"Type de point d'accès:",{"$f":"D_Type","v":"Principal"}]
[]
[]
[]
[null,"A. Les tarifs pour la gestion et le développement de l’infrastructure de réseau "]
[]
[null,null,null,"€/kW net prélevé par mois"]
[null,null,"1. Les tarifs pour la pointe mensuelle",{"$f":"VLOOKUP($C$5,Tarifs!D9:F11,3,FALSE)","v":0.21829999999999999}]
[]
[null,null,null,"€/kW net prélevé par an"]
[null,null,"2. Les tarifs pour la pointe annuelle",{"$f":"VLOOKUP($C$5,Tarifs!D16:F18,3,FALSE)","v":5.8052000000000001}]
[]
[null,null,null,"€/kVA au prélèvement par an"]
[null,null,"3. Les tarifs pour la puissance mise à disposition",{"$f":"IF($C$7=\"Principal\",VLOOKUP($C$5,Tarifs!D24:G26,3,FALSE),VLOOKUP($C$5,Tarifs!D24:H26,4,FALSE))","v":4.5052000000000003}]
[]
[null,"B. Les tarifs de gestion du système électrique"]
[null,null,null,"€/MWh net prélevé"]
[null,null,null,{"$f":"VLOOKUP($C$5,Tarifs!D32:F34,3,FALSE)","v":0.90739999999999998}]
[]
[null,"C. Les tarifs pour les réserves de puissance et le black-start"]
[null,null,null,"€/MWh net prélevé"]
[null,null,"1. sur base du prélèvement",{"$f":"VLOOKUP($C$5,Tarifs!D41:F43,3,FALSE)","v":0.68789999999999996}]
[]
[null,null,null,"€/MWh net injecté"]
[null,null,"2. sur base de l'injection",{"$f":"VLOOKUP($C$5,Tarifs!D47:F49,3,FALSE)","v":0.6169}]
[]
[null,"D. Les tarifs pour l’intégration du marché"]
[null,null,null,"€/MWh net prélevé"]
[null,null,null,{"$f":"VLOOKUP($C$5,Tarifs!D54:F56,3,FALSE)","v":0.36820000000000003}]
[]
[null,"E. Tarifs pour obligations de service public"]
[null,null,null,"€/MWh net prélevé"]
[null,null,"1. Tarif pour obligations de service public pour le financement du raccordement des parcs éoliens offshore (fédéral)",{"$f":"VLOOKUP($C$5,Tarifs!D63:F65,3,FALSE)","v":0.1188}]
[]
[null,null,null,"€/MWh net prélevé"]
[null,null,"2. Tarif  pour obligations de service public pour le financement de certificats verts (fédéral)",{"$f":"VLOOKUP($C$5,Tarifs!D70:F72,3,FALSE)","v":9.0140999999999991}]
[]
[null,null,null,"€/MWh net prélevé"]
[null,null,"3. Tarif pour obligations de service public pour le financement des Réserves Stratégiques (fédéral)",{"$f":"VLOOKUP($C$5,Tarifs!D77:F79,3,FALSE)","v":0}]
[]
[null,null,null,"€/MWh net prélevé"]
[null,null,"4. Tarif pour obligations de service public pour le financement des mesures de soutien aux énergies renouvelables et cogénération en Flandre",{"$f":"IF($C$6=\"Flandre\",VLOOKUP($C$5,Tarifs!D84:F86,3,FALSE),0)","v":0}]
[]
[null,null,null,"€/MWh net prélevé"]
[null,null,"5. Tarif pour obligations de service public pour le financement des mesures de promotion de l’utilisation rationnelle de l’énergie en Flandre",{"$f":"IF($C$6=\"Flandre\",VLOOKUP($C$5,Tarifs!D91:F93,3,FALSE),0)","v":0}]
[]
[null,null,null,"Premier terme","Second terme"]
[null,null,null,"€/MWh net prélevé","€/MWh exonéré"]
[null,null,"6. Tarif pour obligations de service public pour le financement des mesures de soutien aux énergies renouvelables en Wallonie",{"$f":"IF($C$6=\"Wallonie\",VLOOKUP($C$5,Tarifs!D99:F101,3,FALSE),0)","v":0},{"$f":"IF($C$6=\"Wallonie\",VLOOKUP($C$5,Tarifs!D99:G101,4,FALSE),0)","v":0}]
[]
[null,"F. Taxes et Surcharges"]
[null,null,null,"€/MWh net prélevé"]
[null,null,"1. Cotisation fédérale",{"$f":"VLOOKUP($C$5,Tarifs!D107:F109,3,FALSE)","v":3.1427999999999998}]
[]
[null,null,null,"€/MWh net prélevé"]
[null,null,"2. Surcharge pour occupation du domaine public en Wallonie",{"$f":"IF($C$6=\"Wallonie\",VLOOKUP($C$5,Tarifs!D114:F116,3,FALSE),0)","v":0}]
[]
[null,null,null,"€/MWh net prélevé"]
[null,null,"3. Redevance pour droit de voirie à Bruxelles Capitale",{"$f":"IF($C$6=\"Bruxelles Capitale\",VLOOKUP($C$5,Tarifs!D121:F123,3,FALSE),0)","v":3.5084}]
[]
[null,null,null,"€/MWh net prélevé"]
[null,null,"4. Surcharge pour les taxes \"pylônes\" et \"tranchées\" en Flandre",{"$f":"IF($C$6=\"Flandre\",VLOOKUP($C$5,Tarifs!D128:F130,3,FALSE),0)","v":0}]

{"sheet":"Résultats II","index":3,"n_rows":370,"n_cols":15,"rows_kept":370,"cut":false,"hidden":false,"merged":[[367,1,367,8],[369,1,369,8],[98,3,98,8],[104,3,104,8],[363,1,363,8],[193,4,193,8],[278,4,278,8],[359,1,359,8],[361,1,361,8]]}
[]
[null,"Résultats"]
[]
[null,null,null,null,"Type de client :","Client directement raccordé au réseau Elia"]
[null,null,null,null,"Niveau d’infrastructure : ",{"$f":"D_Tension","v":"En réseau 380/220/150 kV"}]
[null,null,null,null,"Région : ",{"$f":"D_Region","v":"Bruxelles Capitale"}]
[null,null,null,null,"Type de point d'accès:",{"$f":"D_Type","v":"Principal"}]
[null,null,null,null,"Détenteur d'accès:   ",{"$f":"D_DA","v":"Non"}]
[null,null,null,null,"Accord de branche:   ",{"$f":"D_AB","v":"Non"}]
[null,null,null,null,"Convenant:   ",{"$f":"D_CK","v":"Non"}]
[null,null,null,null,"Type d'activité:  ",{"$f":"D_TA","v":"Autre"}]
[]
[]
[]
[null,"a. Termes pour la gestion et le développement de l’infrastructure de réseau"]
[]
[null,null,"a.1) Termes pour pointe mensuelle :"]
[]
[null,null,null,null,null,"Pointe mensuelle",null,"Tarif",null,"Montant"]
[null,null,null,null,"Janvier",{"$f":"Données!F26","v":0},"MW *",{"$f":"'Résultats I'!$D$14","v":0.21829999999999999},"€/kW =",{"$f":"F20*H20*1000","v":0},"€"]
[null,null,null,null,"Février",{"$f":"Données!F27","v":0},"MW *",{"$f":"H20","v":0.21829999999999999},"€/kW =",{"$f":"F21*H21*1000","v":0},"€"]
[null,null,null,null,"Mars",{"$f":"Données!F28","v":0},"MW *",{"$f":"H21","v":0.21829999999999999},"€/kW =",0,"€"]
[null,null,null,null,"Avril",{"$f":"Données!F29","v":0},"MW *",0.21829999999999999,"€/kW =",0,"€"]
[null,null,null,null,"Mai",{"$f":"Données!F30","v":0},"MW *",0.21829999999999999,"€/kW =",0,"€"]
[null,null,null,null,"Juin",{"$f":"Données!F31","v":0},"MW *",0.21829999999999999,"€/kW =",0,"€"]
[null,null,null,null,"Juillet",{"$f":"Données!F32","v":0},"MW *",0.21829999999999999,"€/kW =",0,"€"]
[null,null,null,null,"Août",{"$f":"Données!F33","v":0},"MW *",0.21829999999999999,"€/kW =",0,"€"]
[null,null,null,null,"Septembre",{"$f":"Données!F34","v":0},"MW *",0.21829999999999999,"€/kW =",0,"€"]
[null,null,null,null,"Octobre",{"$f":"Données!F35","v":0},"MW *",0.21829999999999999,"€/kW =",0,"€"]
[null,null,null,null,"Novembre",{"$f":"Données!F36","v":0},"MW *",0.21829999999999999,"€/kW =",0,"€"]
[null,null,null,null,"Décembre",{"$f":"Données!F37","v":0},"MW *",0.21829999999999999,"€/kW =",0,"€"]
[]
[null,null,null,null,null,null,null,null,"Total terme pour pointe mensuelle :  ",{"$f":"SUM(J20:J31)","v":0},"€"]
[]
[]
[null,null,"a.2) Termes pour pointe annuelle :"]
[]
[null,null,null,null,null,"Pointe annuelle",null,"Tarif",null,"Montant"]
[null,null,null,null,"Janvier",{"$f":"Données!I26","v":0},"MW *",{"$f":"'Résultats I'!$D$17/12","v":0.48376666666666668},"€/kW =",{"$f":"F39*H39*1000","v":0},"€"]
[null,null,null,null,"Février",{"$f":"Données!I27","v":0},"MW *",{"$f":"H39","v":0.48376666666666668},"€/kW =",0,"€"]
[null,null,null,null,"Mars",{"$f":"Données!I28","v":0},"MW *",{"$f":"H40","v":0.48376666666666668},"€/kW =",0,"€"]
[null,null,null,null,"Avril",{"$f":"Données!I29","v":0},"MW *",0.48376666666666668,"€/kW =",0,"€"]
[null,null,null,null,"Mai",{"$f":"Données!I30","v":0},"MW *",0.48376666666666668,"€/kW =",0,"€"]
[null,null,null,null,"Juin",{"$f":"Données!I31","v":0},"MW *",0.48376666666666668,"€/kW =",0,"€"]
[null,null,null,null,"Juillet",{"$f":"Données!I32","v":0},"MW *",0.48376666666666668,"€/kW =",0,"€"]
[null,null,null,null,"Août",{"$f":"Données!I33","v":0},"MW *",0.48376666666666668,"€/kW =",0,"€"]
[null,null,null,null,"Septembre",{"$f":"Données!I34","v":0},"MW *",0.48376666666666668,"€/kW =",0,"€"]
[null,null,null,null,"Octobre",{"$f":"Données!I35","v":0},"MW *",0.48376666666666668,"€/kW =",0,"€"]
[null,null,null,null,"Novembre",{"$f":"Données!I36","v":0},"MW *",0.48376666666666668,"€/kW =",0,"€"]
[null,null,null,null,"Décembre",{"$f":"Données!I37","v":0},"MW *",0.48376666666666668,"€/kW =",0,"€"]
[]
[null,null,null,null,null,null,null,null,"Total terme pour pointe annuelle :  ",{"$f":"SUM(J39:J50)","v":0},"€"]
[]
[]
[null,null,"a.3) Termes pour puissance mise à disposition :"]
[]
[null,null,null,null,null,"Puissance",null,"Tarif",null,"Montant"]
[null,null,null,null,null,{"$f":"Données!$F$48","v":0},"MVA *",{"$f":"'Résultats I'!$D$20","v":4.5052000000000003},"€/kVA",{"$f":"F58*H58*1000","v":0},"€"]
[]
[null,null,null,null,null,null,null,null,"Total terme pour la gestion et le développement de l’infrastructure de réseau :",{"$f":"J33+J52+J58","v":0},"€"]
[]
[]
[null,"b) Termes pour gestion du système électrique :"]
[]
[null,null,null,null,null,"Energie nette prélevée",null,"Tarif",null,"Montant"]
[null,null,null,null,"Janvier",{"$f":"Données!H62","v":0},"MWh *",{"$f":"'Résultats I'!D24","v":0.90739999999999998},"€/MWh =",{"$f":"F66*H66","v":0},"€"]
[null,null,null,null,"Février",{"$f":"Données!H63","v":0},"MWh *",{"$f":"H66","v":0.90739999999999998},"€/MWh =",{"$f":"F67*H67","v":0},"€"]
[null,null,null,null,"Mars",{"$f":"Données!H64","v":0},"MWh *",{"$f":"H67","v":0.90739999999999998},"€/MWh =",0,"€"]
[null,null,null,null,"Avril",{"$f":"Données!H65","v":0},"MWh *",0.90739999999999998,"€/MWh =",0,"€"]
[null,null,null,null,"Mai",{"$f":"Données!H66","v":0},"MWh *",0.90739999999999998,"€/MWh =",0,"€"]
[null,null,null,null,"Juin",{"$f":"Données!H67","v":0},"MWh *",0.90739999999999998,"€/MWh =",0,"€"]
[null,null,null,null,"Juillet",{"$f":"Données!H68","v":0},"MWh *",0.90739999999999998,"€/MWh =",0,"€"]
[null,null,null,null,"Août",{"$f":"Données!H69","v":0},"MWh *",0.90739999999999998,"€/MWh =",0,"€"]
[null,null,null,null,"Septembre",{"$f":"Données!H70","v":0},"MWh *",0.90739999999999998,"€/MWh =",0,"€"]
[null,null,null,null,"Octobre",{"$f":"Données!H71","v":0},"MWh *",0.90739999999999998,"€/MWh =",0,"€"]
[null,null,null,null,"Novembre",{"$f":"Données!H72","v":0},"MWh *",0.90739999999999998,"€/MWh =",0,"€"]
[null,null,null,null,"Décembre",{"$f":"Données!H73","v":0},"MWh *",0.90739999999999998,"€/MWh =",0,"€"]
[]
[null,null,null,null,null,null,null,null,"Total terme pour gestion du système électrique :  ",{"$f":"SUM(J66:J77)","v":0},"€"]
[]
[]
[null,"c) Termes pour les réserves de puissance et le black-start :"]
[]
[null,null,null,"c.1. Pour le prélèvement :"]
[null,null,null,null,null,"Energie nette prélevée",null,"Tarif",null,"Montant"]
[null,null,null,null,"Janvier",{"$f":"Données!H62","v":0},"MWh *",{"$f":"'Résultats I'!D28","v":0.68789999999999996},"€/MWh =",{"$f":"F86*H86","v":0},"€"]
[null,null,null,null,"Février",{"$f":"Données!H63","v":0},"MWh *",{"$f":"H86","v":0.68789999999999996},"€/MWh =",{"$f":"F87*H87","v":0},"€"]
[null,null,null,null,"Mars",{"$f":"Données!H64","v":0},"MWh *",{"$f":"H87","v":0.68789999999999996},"€/MWh =",0,"€"]
[null,null,null,null,"Avril",{"$f":"Données!H65","v":0},"MWh *",0.68789999999999996,"€/MWh =",0,"€"]
[null,null,null,null,"Mai",{"$f":"Données!H66","v":0},"MWh *",0.68789999999999996,"€/MWh =",0,"€"]
[null,null,null,null,"Juin",{"$f":"Données!H67","v":0},"MWh *",0.68789999999999996,"€/MWh =",0,"€"]
[null,null,null,null,"Juillet",{"$f":"Données!H68","v":0},"MWh *",0.68789999999999996,"€/MWh =",0,"€"]
[null,null,null,null,"Août",{"$f":"Données!H69","v":0},"MWh *",0.68789999999999996,"€/MWh =",0,"€"]
[null,null,null,null,"Septembre",{"$f":"Données!H70","v":0},"MWh *",0.68789999999999996,"€/MWh =",0,"€"]
[null,null,null,null,"Octobre",{"$f":"Données!H71","v":0},"MWh *",0.68789999999999996,"€/MWh =",0,"€"]
[null,null,null,null,"Novembre",{"$f":"Données!H72","v":0},"MWh *",0.68789999999999996,"€/MWh =",0,"€"]
[null,null,null,null,"Décembre",{"$f":"Données!H73","v":0},"MWh *",0.68789999999999996,"€/MWh =",0,"€"]
[]
[null,null,null,"Total terme  pour les réserves de puissance et le black-start pour le prélèvement :",null,null,null,null,null,{"$f":"SUM(J86:J97)","v":0},"€"]
[]
[null,null,null,"c.2. Pour l'injection :"]
[null,null,null,null,null,"Energie nette injectée",null,"Tarif",null,"Montant"]
[null,null,null,null,null,{"$f":"Données!F81","v":0},"MWh *",{"$f":"'Résultats I'!D31","v":0.6169},"€/MWh =",{"$f":"F103*H103","v":0},"€"]
[]
[null,null,null,"Total terme  pour les réserves de puissance et le black-start :",null,null,null,null,null,{"$f":"J99+J103","v":0},"€"]
[]
[]
[null,"d) Termes pour l’intégration du marché :"]
[]
[null,null,null,null,null,"Energie nette prélevée",null,"Tarif",null,"Montant"]
[null,null,null,null,"Janvier",{"$f":"Données!H62","v":0},"MWh *",{"$f":"'Résultats I'!D35","v":0.36820000000000003},"€/MWh =",{"$f":"F111*H111","v":0},"€"]
[null,null,null,null,"Février",{"$f":"Données!H63","v":0},"MWh *",{"$f":"H111","v":0.36820000000000003},"€/MWh =",{"$f":"F112*H112","v":0},"€"]
[null,null,null,null,"Mars",{"$f":"Données!H64","v":0},"MWh *",{"$f":"H112","v":0.36820000000000003},"€/MWh =",0,"€"]
[null,null,null,null,"Avril",{"$f":"Données!H65","v":0},"MWh *",0.36820000000000003,"€/MWh =",0,"€"]
[null,null,null,null,"Mai",{"$f":"Données!H66","v":0},"MWh *",0.36820000000000003,"€/MWh =",0,"€"]
[null,null,null,null,"Juin",{"$f":"Données!H67","v":0},"MWh *",0.36820000000000003,"€/MWh =",0,"€"]
[null,null,null,null,"Juillet",{"$f":"Données!H68","v":0},"MWh *",0.36820000000000003,"€/MWh =",0,"€"]
[null,null,null,null,"Août",{"$f":"Données!H69","v":0},"MWh *",0.36820000000000003,"€/MWh =",0,"€"]
[null,null,null,null,"Septembre",{"$f":"Données!H70","v":0},"MWh *",0.36820000000000003,"€/MWh =",0,"€"]
[null,null,null,null,"Octobre",{"$f":"Données!H71","v":0},"MWh *",0.36820000000000003,"€/MWh =",0,"€"]
[null,null,null,null,"Novembre",{"$f":"Données!H72","v":0},"MWh *",0.36820000000000003,"€/MWh =",0,"€"]
[null,null,null,null,"Décembre",{"$f":"Données!H73","v":0},"MWh *",0.36820000000000003,"€/MWh =",0,"€"]
[]
[null,null,null,null,null,null,null,null,"Total terme pour intégration du marché :  ",{"$f":"SUM(J111:J122)","v":0},"€"]
[]
[]
[null,"e) Obligations de service public :"]
[]
[null,null,"e.1.) Financement de raccordement des parcs éoliens offshore (niveau fédéral)"]
[]
[null,null,null,null,null,"Energie nette prélevée",null,"Tarif",null,"Montant"]
[null,null,null,null,"Janvier",{"$f":"Données!H62","v":0},"MWh *",{"$f":"'Résultats I'!D39","v":0.1188},"€/MWh =",{"$f":"F132*H132","v":0},"€"]
[null,null,null,null,"Février",{"$f":"Données!H63","v":0},"MWh *",{"$f":"H132","v":0.1188},"€/MWh =",{"$f":"F133*H133","v":0},"€"]
[null,null,null,null,"Mars",{"$f":"Données!H64","v":0},"MWh *",{"$f":"H133","v":0.1188},"€/MWh =",0,"€"]
[null,null,null,null,"Avril",{"$f":"Données!H65","v":0},"MWh *",0.1188,"€/MWh =",0,"€"]
[null,null,null,null,"Mai",{"$f":"Données!H66","v":0},"MWh *",0.1188,"€/MWh =",0,"€"]
[null,null,null,null,"Juin",{"$f":"Données!H67","v":0},"MWh *",0.1188,"€/MWh =",0,"€"]
[null,null,null,null,"Juillet",{"$f":"Données!H68","v":0},"MWh *",0.1188,"€/MWh =",0,"€"]
[null,null,null,null,"Août",{"$f":"Données!H69","v":0},"MWh *",0.1188,"€/MWh =",0,"€"]
[null,null,null,null,"Septembre",{"$f":"Données!H70","v":0},"MWh *",0.1188,"€/MWh =",0,"€"]
[null,null,null,null,"Octobre",{"$f":"Données!H71","v":0},"MWh *",0.1188,"€/MWh =",0,"€"]
[null,null,null,null,"Novembre",{"$f":"Données!H72","v":0},"MWh *",0.1188,"€/MWh =",0,"€"]
[null,null,null,null,"Décembre",{"$f":"Données!H73","v":0},"MWh *",0.1188,"€/MWh =",0,"€"]
[]
[null,null,null,null,null,null,null,null,"Total terme pour financement de raccordement des parcs éoliens offshore :  ",{"$f":"SUM(J132:J143)","v":0},"€"]
[]
[]
[null,null,"e.2.) Certificat vert (niveau fédéral)"]
[null,null,null,"Le calcul de la dégressivité se fait sur base des volumes prélevès de l'année calendrier en cours"]
[null,null,null,"et non, sur base des volumes prélevés de 11 derniers mois plus le mois courant comme prévu dans le tarif."]
[null,null,null,"Pour les clients finals, la détermination de la tranche de prélèvement pour définir le taux de dégressivité et le calcul"]
[null,null,null,"du maximum de 250.000 € se fait par point de prélèvement et non par site de consommation comme défini dans le tarif"]
[]
[null,null,null,null,"Tranches","Energie nette prélevée par tranche",null,"Tarif",null,"Montant",null,null,"Dégressivité"]
[null,null,null,null,"0-20",{"$f":"MIN(20,Données!H74)","v":0},"MWh *",{"$f":"'Résultats I'!D42","v":9.0140999999999991},"€/MWh =",{"$f":"F155*H155*M155","v":0},"€",null,1,null,{"$f":"IF(Données!O86=\"Oui\",\"\",\"\")","v":""}]
[null,null,null,null,"20-50",{"$f":"MIN(50,Données!H74)-SUM($F$155:F155)","v":0},"MWh *",{"$f":"H155","v":9.0140999999999991},"€/MWh =",{"$f":"F156*H156*M156","v":0},"€",null,{"$f":"IF(AND($F$8=\"Oui\",OR($F$9=\"Oui\",$F$10=\"Oui\")),0.85,1)","v":1}]
[null,null,null,null,"50-1000",{"$f":"MIN(1000,Données!H74)-SUM($F$155:F156)","v":0},"MWh *",{"$f":"H156","v":9.0140999999999991},"€/MWh =",{"$f":"F157*H157*M157","v":0},"€",null,{"$f":"IF(AND($F$8=\"Oui\",OR($F$9=\"Oui\",$F$10=\"Oui\")),0.8,1)","v":1}]
[null,null,null,null,"1000-25000",{"$f":"MIN(25000,Données!H74)-SUM($F$155:F157)","v":0},"MWh *",{"$f":"H157","v":9.0140999999999991},"€/MWh =",{"$f":"F158*H158*M158","v":0},"€",null,{"$f":"IF(AND($F$8=\"Oui\",OR($F$9=\"Oui\",$F$10=\"Oui\")),0.75,1)","v":1}]
[null,null,null,null,">25000",{"$f":"Données!H74-SUM($F$155:F158)","v":0},"MWh *",{"$f":"H158","v":9.0140999999999991},"€/MWh =",{"$f":"F159*H159*M159","v":0},"€",null,{"$f":"IF(AND($F$8=\"Oui\",OR($F$9=\"Oui\",$F$10=\"Oui\")),0.55,1)","v":1}]
[]
[null,null,null,null,null,null,null,null,"Total terme pour certificat vert :  ",{"$f":"IF(AND($F$8=\"Oui\",OR($F$9=\"Oui\",$F$10=\"Oui\")),MIN(250000,SUM(J155:J159)),SUM(J155:J159))","v":0},"€"]
[]
[]
[null,null,"e.3.) Financement des réserves stratégiques (niveau fédéral)"]
[]
[null,null,null,null,null,"Energie nette prélevée",null,"Tarif",null,"Montant"]
[null,null,null,null,"Janvier",{"$f":"Données!H62","v":0},"MWh *",{"$f":"'Résultats I'!D45","v":0},"€/MWh =",{"$f":"F167*H167","v":0},"€"]
[null,null,null,null,"Février",{"$f":"Données!H63","v":0},"MWh *",{"$f":"H167","v":0},"€/MWh =",{"$f":"F168*H168","v":0},"€"]
[null,null,null,null,"Mars",{"$f":"Données!H64","v":0},"MWh *",{"$f":"H168","v":0},"€/MWh =",0,"€"]
[null,null,null,null,"Avril",{"$f":"Données!H65","v":0},"MWh *",0,"€/MWh =",0,"€"]
[null,null,null,null,"Mai",{"$f":"Données!H66","v":0},"MWh *",0,"€/MWh =",0,"€"]
[null,null,null,null,"Juin",{"$f":"Données!H67","v":0},"MWh *",0,"€/MWh =",0,"€"]
[null,null,null,null,"Juillet",{"$f":"Données!H68","v":0},"MWh *",0,"€/MWh =",0,"€"]
[null,null,null,null,"Août",{"$f":"Données!H69","v":0},"MWh *",0,"€/MWh =",0,"€"]
[null,null,null,null,"Septembre",{"$f":"Données!H70","v":0},"MWh *",0,"€/MWh =",0,"€"]
[null,null,null,null,"Octobre",{"$f":"Données!H71","v":0},"MWh *",0,"€/MWh =",0,"€"]
[null,null,null,null,"Novembre",{"$f":"Données!H72","v":0},"MWh *",0,"€/MWh =",0,"€"]
[null,null,null,null,"Décembre",{"$f":"Données!H73","v":0},"MWh *",0,"€/MWh =",0,"€"]
[]
[null,null,null,null,null,null,null,null,"Total terme pour financement  des réserves stratégiques :  ",{"$f":"SUM(J167:J178)","v":0},"€"]
[]
[]
[null,null,"e.4.) Financement des mesures de soutien aux énergies renouvelables et cogénération (en Région Flamande)"]
[null,null,null,"La détermination du tarif ne dépend pas de l’année précédente mais bien de l’année choisie en référence contrairement à ce qui est prévu dans les tarifs."]
[]
[null,null,null,{"$f":"IF($F$6=\"Flandre\",\"\",\"Pas d'application dans cette région\")","v":"Pas d'application dans cette région"}]
[null,null,null,null,"Tranches","Energie nette prélevée par tranche",null,"Tarif",null,"Montant",null,null,"Dégressivité"]
[null,null,null,null,"0-1000",{"$f":"IF($F$6<>\"Flandre\",\"\",IF(Données!H74<1000,Données!H74,0))","v":""},{"$f":"IF($F$6<>\"Flandre\",\"\",\"MWh *\")","v":""},{"$f":"IF($F$6<>\"Flandre\",\"\",'Résultats I'!$D$48)","v":""},{"$f":"IF($F$6<>\"Flandre\",\"\",\"€/MWh =\")","v":""},{"$f":"IF($F$6<>\"Flandre\",\"\",F188*H188*M188)","v":""},{"$f":"IF($F$6<>\"Flandre\",\"\",\"€\")","v":""},null,{"$f":"IF($F$6<>\"Flandre\",\"\",1)","v":""}]
[null,null,null,null,"1000-20000",{"$f":"IF($F$6<>\"Flandre\",\"\",IF(AND(1000<=Données!H74,Données!H74<20000),Données!H74,0))","v":""},{"$f":"IF($F$6<>\"Flandre\",\"\",\"MWh *\")","v":""},{"$f":"IF($F$6<>\"Flandre\",\"\",'Résultats I'!$D$48)","v":""},{"$f":"IF($F$6<>\"Flandre\",\"\",\"€/MWh =\")","v":""},{"$f":"IF($F$6<>\"Flandre\",\"\",F189*H189*M189)","v":""},{"$f":"IF($F$6<>\"Flandre\",\"\",\"€\")","v":""},null,{"$f":"IF($F$6<>\"Flandre\",\"\",0.53)","v":""}]
[null,null,null,null,"20000-100000",{"$f":"IF($F$6<>\"Flandre\",\"\",IF(AND(20000<=Données!H74,Données!H74<100000),Données!H74,0))","v":""},{"$f":"IF($F$6<>\"Flandre\",\"\",\"MWh *\")","v":""},{"$f":"IF($F$6<>\"Flandre\",\"\",'Résultats I'!$D$48)","v":""},{"$f":"IF($F$6<>\"Flandre\",\"\",\"€/MWh =\")","v":""},{"$f":"IF($F$6<>\"Flandre\",\"\",F190*H190*M190)","v":""},{"$f":"IF($F$6<>\"Flandre\",\"\",\"€\")","v":""},null,{"$f":"IF($F$6<>\"Flandre\",\"\",0.2)","v":""}]
[null,null,null,null,"100000-250000",{"$f":"IF($F$6<>\"Flandre\",\"\",IF(AND(100000<=Données!H74,Données!H74<250000),Données!H74,0))","v":""},{"$f":"IF($F$6<>\"Flandre\",\"\",\"MWh *\")","v":""},{"$f":"IF($F$6<>\"Flandre\",\"\",'Résultats I'!$D$48)","v":""},{"$f":"IF($F$6<>\"Flandre\",\"\",\"€/MWh =\")","v":""},{"$f":"IF($F$6<>\"Flandre\",\"\",F191*H191*M191)","v":""},{"$f":"IF($F$6<>\"Flandre\",\"\",\"€\")","v":""},null,{"$f":"IF($F$6<>\"Flandre\",\"\",0.2)","v":""}]
[null,null,null,null,">250000",{"$f":"IF($F$6<>\"Flandre\",\"\",IF(AND(250000<=Données!H74,Données!H74),Données!H74,0))","v":""},{"$f":"IF($F$6<>\"Flandre\",\"\",\"MWh *\")","v":""},{"$f":"IF($F$6<>\"Flandre\",\"\",'Résultats I'!$D$48)","v":""},{"$f":"IF($F$6<>\"Flandre\",\"\",\"€/MWh =\")","v":""},{"$f":"IF($F$6<>\"Flandre\",\"\",F192*H192*M192)","v":""},{"$f":"IF($F$6<>\"Flandre\",\"\",\"€\")","v":""},null,{"$f":"IF($F$6<>\"Flandre\",\"\",0.02)","v":""}]
[]
[null,null,null,null,"            Total terme pour financement des mesures de soutien\n            aux énergies renouvelables et cogénération :  ",null,null,null,null,{"$f":"SUM(J188:J192)","v":0},"€"]
[]
[null,null,"e.5.) Financement des mesures en faveur de l'utilisation rationnelle de l'énergie (en Région Flamande)"]
[null,null,null,{"$f":"IF($F$6=\"Flandre\",\"\",\"Pas d'application dans cette région\")","v":"Pas d'application dans cette région"}]
[null,null,null,null,null,"Energie nette prélevée",null,"Tarif",null,"Montant"]
[null,null,null,null,"Janvier",{"$f":"IF($F$6<>\"Flandre\",\"\",Données!H62)","v":""},{"$f":"IF($F$6<>\"Flandre\",\"\",\"MWh *\")","v":""},{"$f":"IF($F$6<>\"Flandre\",\"\",'Résultats I'!$D$51)","v":""},{"$f":"IF($F$6<>\"Flandre\",\"\",\"€/MWh =\")","v":""},{"$f":"IF($F$6<>\"Flandre\",\"\",F199*H199)","v":""},{"$f":"IF($F$6<>\"Flandre\",\"\",\"€\")","v":""}]
[null,null,null,null,"Février",{"$f":"IF($F$6<>\"Flandre\",\"\",Données!H63)","v":""},"",{"$f":"IF($F$6<>\"Flandre\",\"\",'Résultats I'!$D$51)","v":""},"","",""]
[null,null,null,null,"Mars",{"$f":"IF($F$6<>\"Flandre\",\"\",Données!H64)","v":""},"",{"$f":"IF($F$6<>\"Flandre\",\"\",'Résultats I'!$D$51)","v":""},"","",""]
[null,null,null,null,"Avril",{"$f":"IF($F$6<>\"Flandre\",\"\",Données!H65)","v":""},"",{"$f":"IF($F$6<>\"Flandre\",\"\",'Résultats I'!$D$51)","v":""},"","",""]
[null,null,null,null,"Mai",{"$f":"IF($F$6<>\"Flandre\",\"\",Données!H66)","v":""},"",{"$f":"IF($F$6<>\"Flandre\",\"\",'Résultats I'!$D$51)","v":""},"","",""]
[null,null,null,null,"Juin",{"$f":"IF($F$6<>\"Flandre\",\"\",Données!H67)","v":""},"",{"$f":"IF($F$6<>\"Flandre\",\"\",'Résultats I'!$D$51)","v":""},"","",""]
[null,null,null,null,"Juillet",{"$f":"IF($F$6<>\"Flandre\",\"\",Données!H68)","v":""},"",{"$f":"IF($F$6<>\"Flandre\",\"\",'Résultats I'!$D$51)","v":""},"","",""]
[null,null,null,null,"Août",{"$f":"IF($F$6<>\"Flandre\",\"\",Données!H69)","v":""},"",{"$f":"IF($F$6<>\"Flandre\",\"\",'Résultats I'!$D$51)","v":""},"","",""]
[null,null,null,null,"Septembre",{"$f":"IF($F$6<>\"Flandre\",\"\",Données!H70)","v":""},"",{"$f":"IF($F$6<>\"Flandre\",\"\",'Résultats I'!$D$51)","v":""},"","",""]
[null,null,null,null,"Octobre",{"$f":"IF($F$6<>\"Flandre\",\"\",Données!H71)","v":""},"",{"$f":"IF($F$6<>\"Flandre\",\"\",'Résultats I'!$D$51)","v":""},"","",""]
[null,null,null,null,"Novembre",{"$f":"IF($F$6<>\"Flandre\",\"\",Données!H72)","v":""},"",{"$f":"IF($F$6<>\"Flandre\",\"\",'Résultats I'!$D$51)","v":""},"","",""]
[null,null,null,null,"Décembre",{"$f":"IF($F$6<>\"Flandre\",\"\",Données!H73)","v":""},"",{"$f":"IF($F$6<>\"Flandre\",\"\",'Résultats I'!$D$51)","v":""},"","",""]
[]
[null,null,null,null,null,null,null,null,"Total terme pour financement des URE :  ",{"$f":"SUM(J199:J210)","v":0},"€"]
[]
[null,null,"e.6.) Financement des mesures de soutien aux énergies renouvelables (en Région Wallonne)"]
[null,null,null,{"$f":"IF($F$6=\"Wallonie\",\"\",\"Pas d'application dans cette région\")","v":"Pas d'application dans cette région"}]
[]
[null,null,null,"e.6.a.) Premier terme"]
[]
[null,null,null,null,null,"Energie nette prélevée",null,"Tarif premier terme",null,"Montant"]
[null,null,null,null,"Janvier",{"$f":"IF($F$6<>\"Wallonie\",\"\",Données!H62)","v":""},{"$f":"IF($F$6<>\"Wallonie\",\"\",\"MWh *\")","v":""},{"$f":"IF($F$6<>\"Wallonie\",\"\",'Résultats I'!$D$55)","v":""},{"$f":"IF($F$6<>\"Wallonie\",\"\",\"€/MWh =\")","v":""},{"$f":"IF($F$6<>\"Wallonie\",\"\",F220*H220)","v":""},{"$f":"IF($F$6<>\"Wallonie\",\"\",\"€\")","v":""}]
[null,null,null,null,"Février",{"$f":"IF($F$6<>\"Wallonie\",\"\",Données!H63)","v":""},{"$f":"IF($F$6<>\"Wallonie\",\"\",\"MWh *\")","v":""},{"$f":"IF($F$6<>\"Wallonie\",\"\",'Résultats I'!$D$55)","v":""},{"$f":"IF($F$6<>\"Wallonie\",\"\",\"€/MWh =\")","v":""},{"$f":"IF($F$6<>\"Wallonie\",\"\",F221*H221)","v":""},""]
[null,null,null,null,"Mars",{"$f":"IF($F$6<>\"Wallonie\",\"\",Données!H64)","v":""},"",{"$f":"IF($F$6<>\"Wallonie\",\"\",'Résultats I'!$D$55)","v":""},"","",""]
[null,null,null,null,"Avril",{"$f":"IF($F$6<>\"Wallonie\",\"\",Données!H65)","v":""},"",{"$f":"IF($F$6<>\"Wallonie\",\"\",'Résultats I'!$D$55)","v":""},"","",""]
[null,null,null,null,"Mai",{"$f":"IF($F$6<>\"Wallonie\",\"\",Données!H66)","v":""},"",{"$f":"IF($F$6<>\"Wallonie\",\"\",'Résultats I'!$D$55)","v":""},"","",""]
[null,null,null,null,"Juin",{"$f":"IF($F$6<>\"Wallonie\",\"\",Données!H67)","v":""},"",{"$f":"IF($F$6<>\"Wallonie\",\"\",'Résultats I'!$D$55)","v":""},"","",""]
[null,null,null,null,"Juillet",{"$f":"IF($F$6<>\"Wallonie\",\"\",Données!H68)","v":""},"",{"$f":"IF($F$6<>\"Wallonie\",\"\",'Résultats I'!$D$55)","v":""},"","",""]
[null,null,null,null,"Août",{"$f":"IF($F$6<>\"Wallonie\",\"\",Données!H69)","v":""},"",{"$f":"IF($F$6<>\"Wallonie\",\"\",'Résultats I'!$D$55)","v":""},"","",""]
[null,null,null,null,"Septembre",{"$f":"IF($F$6<>\"Wallonie\",\"\",Données!H70)","v":""},"",{"$f":"IF($F$6<>\"Wallonie\",\"\",'Résultats I'!$D$55)","v":""},"","",""]
[null,null,null,null,"Octobre",{"$f":"IF($F$6<>\"Wallonie\",\"\",Données!H71)","v":""},"",{"$f":"IF($F$6<>\"Wallonie\",\"\",'Résultats I'!$D$55)","v":""},"","",""]
[null,null,null,null,"Novembre",{"$f":"IF($F$6<>\"Wallonie\",\"\",Données!H72)","v":""},"",{"$f":"IF($F$6<>\"Wallonie\",\"\",'Résultats I'!$D$55)","v":""},"","",""]
[null,null,null,null,"Décembre",{"$f":"IF($F$6<>\"Wallonie\",\"\",Données!H73)","v":""},"",{"$f":"IF($F$6<>\"Wallonie\",\"\",'Résultats I'!$D$55)","v":""},"","",""]
[]
[null,null,null,null,null,null,null,null,"Total premier terme  des mesures de soutien aux énergies renouvelables :  ",{"$f":"SUM(J220:J231)","v":0},"€"]
[]
[null,null,null,null,null,null,null,null,"Total terme pour obligations de service public :  ",{"$f":"J145+J161+J180+J194+J212+J233","v":0},"€"]
[]
[]
[]
[null,null,null,"Le crédit de l'exonération du premier terme et la facturation du second terme se font sur base trimestrielle d'un fichier reçu par la SPW"]
[null,null,null,"sur base du prélèvement et tarif défini par la SPW."]
[null,null,null,"Les principes sont décrit dans les lignes directrives publiées par la SPW."]
[null,null,null,"Pour plus d'information, voir https://www.elia.be/fr/clients/certificats-verts-et-surcharges/wallonie-exemptions-partielles#Partial exemptions."]
[null,null,null,"Le calcul ci-dessous est pûrement indicatif sur base du volume de prélèvement simulé connu par Elia et sur base du tarif du premier terme."]
[]
[null,null,null,"e.6.b.) Exonération premier terme"]
[null,null,null,null,null,"Energie nette prélevée",null,"Tarif exonéré",null,"Montant",null,null,"Exonération"]
[null,null,null,null,"Janvier",{"$f":"IF($F$6<>\"Wallonie\",\"\",Données!H62)","v":""},{"$f":"IF($F$6<>\"Wallonie\",\"\",\"MWh *\")","v":""},{"$f":"IF($F$6<>\"Wallonie\",\"\",-'Résultats I'!$D$55*$M$247)","v":""},{"$f":"IF($F$6<>\"Wallonie\",\"\",\"€/MWh =\")","v":""},{"$f":"IF($F$6<>\"Wallonie\",\"\",F247*H247)","v":""},{"$f":"IF($F$6<>\"Wallonie\",\"\",\"€\")","v":""},null,{"$f":"IF($F$6<>\"Wallonie\",\"\",IF($F$8=\"Non\",0,IF($F$9=\"Oui\",0.85,IF($F$11=\"Autre\",0,IF($F$11=\"Culture et production animale (01)\",0.5,IF(Données!H74>1000,0.5,0))))))","v":""}]
[null,null,null,null,"Février",{"$f":"IF($F$6<>\"Wallonie\",\"\",Données!H63)","v":""},{"$f":"IF($F$6<>\"Wallonie\",\"\",\"MWh *\")","v":""},{"$f":"IF($F$6<>\"Wallonie\",\"\",-'Résultats I'!$D$55*$M$247)","v":""},{"$f":"IF($F$6<>\"Wallonie\",\"\",\"€/MWh =\")","v":""},{"$f":"IF($F$6<>\"Wallonie\",\"\",F248*H248)","v":""},""]
[null,null,null,null,"Mars",{"$f":"IF($F$6<>\"Wallonie\",\"\",Données!H64)","v":""},"",{"$f":"IF($F$6<>\"Wallonie\",\"\",-'Résultats I'!$D$55*$M$247)","v":""},"","",""]
[null,null,null,null,"Avril",{"$f":"IF($F$6<>\"Wallonie\",\"\",Données!H65)","v":""},"",{"$f":"IF($F$6<>\"Wallonie\",\"\",-'Résultats I'!$D$55*$M$247)","v":""},"","",""]
[null,null,null,null,"Mai",{"$f":"IF($F$6<>\"Wallonie\",\"\",Données!H66)","v":""},"",{"$f":"IF($F$6<>\"Wallonie\",\"\",-'Résultats I'!$D$55*$M$247)","v":""},"","",""]
[null,null,null,null,"Juin",{"$f":"IF($F$6<>\"Wallonie\",\"\",Données!H67)","v":""},"",{"$f":"IF($F$6<>\"Wallonie\",\"\",-'Résultats I'!$D$55*$M$247)","v":""},"","",""]
[null,null,null,null,"Juillet",{"$f":"IF($F$6<>\"Wallonie\",\"\",Données!H68)","v":""},"",{"$f":"IF($F$6<>\"Wallonie\",\"\",-'Résultats I'!$D$55*$M$247)","v":""},"","",""]
[null,null,null,null,"Août",{"$f":"IF($F$6<>\"Wallonie\",\"\",Données!H69)","v":""},"",{"$f":"IF($F$6<>\"Wallonie\",\"\",-'Résultats I'!$D$55*$M$247)","v":""},"","",""]
[null,null,null,null,"Septembre",{"$f":"IF($F$6<>\"Wallonie\",\"\",Données!H70)","v":""},"",{"$f":"IF($F$6<>\"Wallonie\",\"\",-'Résultats I'!$D$55*$M$247)","v":""},"","",""]
[null,null,null,null,"Octobre",{"$f":"IF($F$6<>\"Wallonie\",\"\",Données!H71)","v":""},"",{"$f":"IF($F$6<>\"Wallonie\",\"\",-'Résultats I'!$D$55*$M$247)","v":""},"","",""]
[null,null,null,null,"Novembre",{"$f":"IF($F$6<>\"Wallonie\",\"\",Données!H72)","v":""},"",{"$f":"IF($F$6<>\"Wallonie\",\"\",-'Résultats I'!$D$55*$M$247)","v":""},"","",""]
[null,null,null,null,"Décembre",{"$f":"IF($F$6<>\"Wallonie\",\"\",Données!H73)","v":""},"",{"$f":"IF($F$6<>\"Wallonie\",\"\",-'Résultats I'!$D$55*$M$247)","v":""},"","",""]
[]
[null,null,null,null,null,null,null,null,"Total exonération :  ",{"$f":"SUM(J247:J258)","v":0},"€"]
[]
[null,null,null,"e.6.c.) Second terme"]
[null,null,null,null,null,"Energie nette prélevée",null,"Tarif second terme",null,"Montant"]
[null,null,null,null,"Janvier",{"$f":"IF($F$6<>\"Wallonie\",\"\",Données!H62)","v":""},{"$f":"IF($F$6<>\"Wallonie\",\"\",\"MWh *\")","v":""},{"$f":"IF($F$6<>\"Wallonie\",\"\",'Résultats I'!$E$55)","v":""},{"$f":"IF($F$6<>\"Wallonie\",\"\",\"€/MWh =\")","v":""},{"$f":"IF($F$6<>\"Wallonie\",\"\",F264*H264*$M$247)","v":""},{"$f":"IF($F$6<>\"Wallonie\",\"\",\"€\")","v":""}]
[null,null,null,null,"Février",{"$f":"IF($F$6<>\"Wallonie\",\"\",Données!H63)","v":""},"",{"$f":"IF($F$6<>\"Wallonie\",\"\",'Résultats I'!$E$55)","v":""},"","",""]
[null,null,null,null,"Mars",{"$f":"IF($F$6<>\"Wallonie\",\"\",Données!H64)","v":""},"",{"$f":"IF($F$6<>\"Wallonie\",\"\",'Résultats I'!$E$55)","v":""},"","",""]
[null,null,null,null,"Avril",{"$f":"IF($F$6<>\"Wallonie\",\"\",Données!H65)","v":""},"",{"$f":"IF($F$6<>\"Wallonie\",\"\",'Résultats I'!$E$55)","v":""},"","",""]
[null,null,null,null,"Mai",{"$f":"IF($F$6<>\"Wallonie\",\"\",Données!H66)","v":""},"",{"$f":"IF($F$6<>\"Wallonie\",\"\",'Résultats I'!$E$55)","v":""},"","",""]
[null,null,null,null,"Juin",{"$f":"IF($F$6<>\"Wallonie\",\"\",Données!H67)","v":""},"",{"$f":"IF($F$6<>\"Wallonie\",\"\",'Résultats I'!$E$55)","v":""},"","",""]
[null,null,null,null,"Juillet",{"$f":"IF($F$6<>\"Wallonie\",\"\",Données!H68)","v":""},"",{"$f":"IF($F$6<>\"Wallonie\",\"\",'Résultats I'!$E$55)","v":""},"","",""]
[null,null,null,null,"Août",{"$f":"IF($F$6<>\"Wallonie\",\"\",Données!H69)","v":""},"",{"$f":"IF($F$6<>\"Wallonie\",\"\",'Résultats I'!$E$55)","v":""},"","",""]
[null,null,null,null,"Septembre",{"$f":"IF($F$6<>\"Wallonie\",\"\",Données!H70)","v":""},{"$f":"IF($F$6<>\"Wallonie\",\"\",\"MWh *\")","v":""},{"$f":"IF($F$6<>\"Wallonie\",\"\",'Résultats I'!$E$55)","v":""},{"$f":"IF($F$6<>\"Wallonie\",\"\",\"€/MWh =\")","v":""},"",{"$f":"IF($F$6<>\"Wallonie\",\"\",\"€\")","v":""}]
[null,null,null,null,"Octobre",{"$f":"IF($F$6<>\"Wallonie\",\"\",Données!H71)","v":""},{"$f":"IF($F$6<>\"Wallonie\",\"\",\"MWh *\")","v":""},{"$f":"IF($F$6<>\"Wallonie\",\"\",'Résultats I'!$E$55)","v":""},{"$f":"IF($F$6<>\"Wallonie\",\"\",\"€/MWh =\")","v":""},"",{"$f":"IF($F$6<>\"Wallonie\",\"\",\"€\")","v":""}]
[null,null,null,null,"Novembre",{"$f":"IF($F$6<>\"Wallonie\",\"\",Données!H72)","v":""},{"$f":"IF($F$6<>\"Wallonie\",\"\",\"MWh *\")","v":""},{"$f":"IF($F$6<>\"Wallonie\",\"\",'Résultats I'!$E$55)","v":""},{"$f":"IF($F$6<>\"Wallonie\",\"\",\"€/MWh =\")","v":""},"",{"$f":"IF($F$6<>\"Wallonie\",\"\",\"€\")","v":""}]
[null,null,null,null,"Décembre",{"$f":"IF($F$6<>\"Wallonie\",\"\",Données!H73)","v":""},{"$f":"IF($F$6<>\"Wallonie\",\"\",\"MWh *\")","v":""},{"$f":"IF($F$6<>\"Wallonie\",\"\",'Résultats I'!$E$55)","v":""},{"$f":"IF($F$6<>\"Wallonie\",\"\",\"€/MWh =\")","v":""},"",{"$f":"IF($F$6<>\"Wallonie\",\"\",\"€\")","v":""}]
[]
[null,null,null,null,null,null,null,null,"Total second terme des mesures de soutien aux énergies renouvelables :  ",{"$f":"SUM(J264:J275)","v":0},"€"]
[]
[null,null,null,null,"Total exonération premier terme et facturation second terme des mesures de soutien aux énergies renouvelables :  ",null,null,null,null,{"$f":"J260+J277","v":0},"€"]
[]
[]
[null,"f) Taxes et surcharges :"]
[]
[null,null,"f.1.) Cotisation fédérale (niveau fédéral)"]
[null,null,null,"Le calcul de la dégressivité se fait sur base des volumes prélevès de l'année calendrier en cours"]
[null,null,null,"et non, sur base des volumes prélevés de 11 derniers mois plus le mois courant comme prévu dans le tarif."]
[null,null,null,"Pour les clients finals, la détermination de la tranche de prélèvement pour définir le taux de dégressivité et le calcul"]
[null,null,null,"du maximum de 250.000 € se fait par point de prélèvement et non par site de consommation comme défini dans le tarif",null,null,null,null,null,null,null,null,"Partie forfaitaire"]
[null,null,null,null,null,null,null,null,null,null,null,null,{"$f":"IF($F$8=\"Oui\",0.011,0.001)","v":1E-3}]
[null,null,null,null,"Tranches","Energie nette prélevée par tranche",null,"Tarif",null,"Montant",null,null,"Dégressivité"]
[null,null,null,null,"0-20",{"$f":"MIN(20,Données!H74)","v":0},"MWh *",{"$f":"'Résultats I'!D59","v":3.1427999999999998},"€/MWh =",{"$f":"F291*H291*M291","v":0},"€",null,1]
[null,null,null,null,"20-50",{"$f":"MIN(50,Données!H74)-SUM($F$291:F291)","v":0},"MWh *",{"$f":"H291","v":3.1427999999999998},"€/MWh =",{"$f":"F292*H292*M292","v":0},"€",null,{"$f":"IF(AND($F$8=\"Oui\",OR($F$9=\"Oui\",$F$10=\"Oui\")),0.85,1)","v":1}]
[null,null,null,null,"50-1000",{"$f":"MIN(1000,Données!H74)-SUM($F$291:F292)","v":0},"MWh *",{"$f":"H292","v":3.1427999999999998},"€/MWh =",{"$f":"F293*H293*M293","v":0},"€",null,{"$f":"IF(AND($F$8=\"Oui\",OR($F$9=\"Oui\",$F$10=\"Oui\")),0.8,1)","v":1}]
[null,null,null,null,"1000-25000",{"$f":"MIN(25000,Données!H74)-SUM($F$291:F293)","v":0},"MWh *",{"$f":"H293","v":3.1427999999999998},"€/MWh =",{"$f":"F294*H294*M294","v":0},"€",null,{"$f":"IF(AND($F$8=\"Oui\",OR($F$9=\"Oui\",$F$10=\"Oui\")),0.75,1)","v":1}]
[null,null,null,null,">25000",{"$f":"Données!H74-SUM($F$291:F294)","v":0},"MWh *",{"$f":"H294","v":3.1427999999999998},"€/MWh =",{"$f":"F295*H295*M295","v":0},"€",null,{"$f":"IF(AND($F$8=\"Oui\",OR($F$9=\"Oui\",$F$10=\"Oui\")),0.55,1)","v":1}]
[]
[null,null,null,null,null,null,null,null,"Total terme pour cotisation fédérale :  ",{"$f":"IF($F$8=\"Non\",MIN(250000,SUM(J291:J295))*(1+M289),IF(AND($F$8=\"Oui\",OR($F$9=\"Oui\",$F$10=\"Oui\")),MIN(250000,SUM(J291:J295))*(1+M289),SUM(J291:J295)*(1+M289)))","v":0},"€"]
[]
[]
[null,null,"f.2.) Occupation du domaine public (en Région Wallonne)"]
[null,null,null,{"$f":"IF($F$6=\"Wallonie\",\"\",\"Pas d'application dans cette région\")","v":"Pas d'application dans cette région"}]
[null,null,null,null,null,"Energie nette prélevée",null,"Tarif",null,"Montant"]
[null,null,null,null,"Janvier",{"$f":"IF($F$6<>\"Wallonie\",\"\",Données!H62)","v":""},{"$f":"IF($F$6<>\"Wallonie\",\"\",\"MWh *\")","v":""},{"$f":"IF($F$6<>\"Wallonie\",\"\",'Résultats I'!$D$62)","v":""},{"$f":"IF($F$6<>\"Wallonie\",\"\",\"€/MWh =\")","v":""},{"$f":"IF($F$6<>\"Wallonie\",\"\",F303*H303)","v":""},{"$f":"IF($F$6<>\"Wallonie\",\"\",\"€\")","v":""}]
[null,null,null,null,"Février",{"$f":"IF($F$6<>\"Wallonie\",\"\",Données!H63)","v":""},"",{"$f":"IF($F$6<>\"Wallonie\",\"\",'Résultats I'!$D$62)","v":""},"","",""]
[null,null,null,null,"Mars",{"$f":"IF($F$6<>\"Wallonie\",\"\",Données!H64)","v":""},"",{"$f":"IF($F$6<>\"Wallonie\",\"\",'Résultats I'!$D$62)","v":""},"","",""]
[null,null,null,null,"Avril",{"$f":"IF($F$6<>\"Wallonie\",\"\",Données!H65)","v":""},"",{"$f":"IF($F$6<>\"Wallonie\",\"\",'Résultats I'!$D$62)","v":""},"","",""]
[null,null,null,null,"Mai",{"$f":"IF($F$6<>\"Wallonie\",\"\",Données!H66)","v":""},"",{"$f":"IF($F$6<>\"Wallonie\",\"\",'Résultats I'!$D$62)","v":""},"","",""]
[null,null,null,null,"Juin",{"$f":"IF($F$6<>\"Wallonie\",\"\",Données!H67)","v":""},"",{"$f":"IF($F$6<>\"Wallonie\",\"\",'Résultats I'!$D$62)","v":""},"","",""]
[null,null,null,null,"Juillet",{"$f":"IF($F$6<>\"Wallonie\",\"\",Données!H68)","v":""},"",{"$f":"IF($F$6<>\"Wallonie\",\"\",'Résultats I'!$D$62)","v":""},"","",""]
[null,null,null,null,"Août",{"$f":"IF($F$6<>\"Wallonie\",\"\",Données!H69)","v":""},"",{"$f":"IF($F$6<>\"Wallonie\",\"\",'Résultats I'!$D$62)","v":""},"","",""]
[null,null,null,null,"Septembre",{"$f":"IF($F$6<>\"Wallonie\",\"\",Données!H70)","v":""},"",{"$f":"IF($F$6<>\"Wallonie\",\"\",'Résultats I'!$D$62)","v":""},"","",""]
[null,null,null,null,"Octobre",{"$f":"IF($F$6<>\"Wallonie\",\"\",Données!H71)","v":""},"",{"$f":"IF($F$6<>\"Wallonie\",\"\",'Résultats I'!$D$62)","v":""},"","",""]
[null,null,null,null,"Novembre",{"$f":"IF($F$6<>\"Wallonie\",\"\",Données!H72)","v":""},"",{"$f":"IF($F$6<>\"Wallonie\",\"\",'Résultats I'!$D$62)","v":""},"","",""]
[null,null,null,null,"Décembre",{"$f":"IF($F$6<>\"Wallonie\",\"\",Données!H73)","v":""},"",{"$f":"IF($F$6<>\"Wallonie\",\"\",'Résultats I'!$D$62)","v":""},"","",""]
[]
[null,null,null,null,null,null,null,null,"Total terme pour occupation du domaine public en Région Wallonne :  ",{"$f":"SUM(J303:J314)","v":0},"€"]
[]
[]
[null,null,"f.3.) Redevance occupation de voirie (en Région de Bruxelles Capitale Capitale)"]
[null,null,null,{"$f":"IF($F$6=\"Bruxelles Capitale\",\"\",\"Pas d'application dans cette région\")","v":""}]
[null,null,null,null,null,"Energie nette prélevée",null,"Tarif",null,"Montant"]
[null,null,null,null,"Janvier",{"$f":"IF($F$6<>\"Bruxelles Capitale\",\"\",Données!H62)","v":0},{"$f":"IF($F$6<>\"Bruxelles Capitale\",\"\",\"MWh *\")","v":"MWh *"},{"$f":"IF($F$6<>\"Bruxelles Capitale\",\"\",'Résultats I'!$D$65)","v":3.5084},{"$f":"IF($F$6<>\"Bruxelles Capitale\",\"\",\"€/MWh =\")","v":"€/MWh ="},{"$f":"IF($F$6<>\"Bruxelles Capitale\",\"\",F322*H322)","v":0},{"$f":"IF($F$6<>\"Bruxelles Capitale\",\"\",\"€\")","v":"€"}]
[null,null,null,null,"Février",{"$f":"IF($F$6<>\"Bruxelles Capitale\",\"\",Données!H63)","v":0},"MWh *",{"$f":"IF($F$6<>\"Bruxelles Capitale\",\"\",'Résultats I'!$D$65)","v":3.5084},"€/MWh =",0,"€"]
[null,null,null,null,"Mars",{"$f":"IF($F$6<>\"Bruxelles Capitale\",\"\",Données!H64)","v":0},"MWh *",{"$f":"IF($F$6<>\"Bruxelles Capitale\",\"\",'Résultats I'!$D$65)","v":3.5084},"€/MWh =",0,"€"]
[null,null,null,null,"Avril",{"$f":"IF($F$6<>\"Bruxelles Capitale\",\"\",Données!H65)","v":0},"MWh *",{"$f":"IF($F$6<>\"Bruxelles Capitale\",\"\",'Résultats I'!$D$65)","v":3.5084},"€/MWh =",0,"€"]
[null,null,null,null,"Mai",{"$f":"IF($F$6<>\"Bruxelles Capitale\",\"\",Données!H66)","v":0},"MWh *",{"$f":"IF($F$6<>\"Bruxelles Capitale\",\"\",'Résultats I'!$D$65)","v":3.5084},"€/MWh =",0,"€"]
[null,null,null,null,"Juin",{"$f":"IF($F$6<>\"Bruxelles Capitale\",\"\",Données!H67)","v":0},"MWh *",{"$f":"IF($F$6<>\"Bruxelles Capitale\",\"\",'Résultats I'!$D$65)","v":3.5084},"€/MWh =",0,"€"]
[null,null,null,null,"Juillet",{"$f":"IF($F$6<>\"Bruxelles Capitale\",\"\",Données!H68)","v":0},"MWh *",{"$f":"IF($F$6<>\"Bruxelles Capitale\",\"\",'Résultats I'!$D$65)","v":3.5084},"€/MWh =",0,"€"]
[null,null,null,null,"Août",{"$f":"IF($F$6<>\"Bruxelles Capitale\",\"\",Données!H69)","v":0},"MWh *",{"$f":"IF($F$6<>\"Bruxelles Capitale\",\"\",'Résultats I'!$D$65)","v":3.5084},"€/MWh =",0,"€"]
[null,null,null,null,"Septembre",{"$f":"IF($F$6<>\"Bruxelles Capitale\",\"\",Données!H70)","v":0},"MWh *",{"$f":"IF($F$6<>\"Bruxelles Capitale\",\"\",'Résultats I'!$D$65)","v":3.5084},"€/MWh =",0,"€"]
[null,null,null,null,"Octobre",{"$f":"IF($F$6<>\"Bruxelles Capitale\",\"\",Données!H71)","v":0},"MWh *",{"$f":"IF($F$6<>\"Bruxelles Capitale\",\"\",'Résultats I'!$D$65)","v":3.5084},"€/MWh =",0,"€"]
[null,null,null,null,"Novembre",{"$f":"IF($F$6<>\"Bruxelles Capitale\",\"\",Données!H72)","v":0},"MWh *",{"$f":"IF($F$6<>\"Bruxelles Capitale\",\"\",'Résultats I'!$D$65)","v":3.5084},"€/MWh =",0,"€"]
[null,null,null,null,"Décembre",{"$f":"IF($F$6<>\"Bruxelles Capitale\",\"\",Données!H73)","v":0},"MWh *",{"$f":"IF($F$6<>\"Bruxelles Capitale\",\"\",'Résultats I'!$D$65)","v":3.5084},"€/MWh =",0,"€"]
[]
[null,null,null,null,null,null,null,null,"Total terme pour redevance occupation de voirie :  ",{"$f":"SUM(J322:J333)","v":0},"€"]
[]
[]
[null,null,"f.4.) Surcharge pour les taxes \"pylônes\" et \"tranchées\" (en Région Flamande)"]
[null,null,null,{"$f":"IF($F$6=\"Flandre\",\"\",\"Pas d'application dans cette région\")","v":"Pas d'application dans cette région"}]
[null,null,null,null,null,"Energie nette prélevée",null,"Tarif",null,"Montant"]
[null,null,null,null,"Janvier",{"$f":"IF($F$6<>\"Flandre\",\"\",Données!H62)","v":""},{"$f":"IF($F$6<>\"Flandre\",\"\",\"MWh *\")","v":""},{"$f":"IF($F$6<>\"Flandre\",\"\",'Résultats I'!$D$68)","v":""},{"$f":"IF($F$6<>\"Flandre\",\"\",\"€/MWh =\")","v":""},{"$f":"IF($F$6<>\"Flandre\",\"\",F341*H341)","v":""},{"$f":"IF($F$6<>\"Flandre\",\"\",\"€\")","v":""}]
[null,null,null,null,"Février",{"$f":"IF($F$6<>\"Flandre\",\"\",Données!H63)","v":""},"",{"$f":"IF($F$6<>\"Flandre\",\"\",'Résultats I'!$D$68)","v":""},"","",""]
[null,null,null,null,"Mars",{"$f":"IF($F$6<>\"Flandre\",\"\",Données!H64)","v":""},"",{"$f":"IF($F$6<>\"Flandre\",\"\",'Résultats I'!$D$68)","v":""},"","",""]
[null,null,null,null,"Avril",{"$f":"IF($F$6<>\"Flandre\",\"\",Données!H65)","v":""},"",{"$f":"IF($F$6<>\"Flandre\",\"\",'Résultats I'!$D$68)","v":""},"","",""]
[null,null,null,null,"Mai",{"$f":"IF($F$6<>\"Flandre\",\"\",Données!H66)","v":""},"",{"$f":"IF($F$6<>\"Flandre\",\"\",'Résultats I'!$D$68)","v":""},"","",""]
[null,null,null,null,"Juin",{"$f":"IF($F$6<>\"Flandre\",\"\",Données!H67)","v":""},"",{"$f":"IF($F$6<>\"Flandre\",\"\",'Résultats I'!$D$68)","v":""},"","",""]
[null,null,null,null,"Juillet",{"$f":"IF($F$6<>\"Flandre\",\"\",Données!H68)","v":""},"",{"$f":"IF($F$6<>\"Flandre\",\"\",'Résultats I'!$D$68)","v":""},"","",""]
[null,null,null,null,"Août",{"$f":"IF($F$6<>\"Flandre\",\"\",Données!H69)","v":""},"",{"$f":"IF($F$6<>\"Flandre\",\"\",'Résultats I'!$D$68)","v":""},"","",""]
[null,null,null,null,"Septembre",{"$f":"IF($F$6<>\"Flandre\",\"\",Données!H70)","v":""},"",{"$f":"IF($F$6<>\"Flandre\",\"\",'Résultats I'!$D$68)","v":""},"","",""]
[null,null,null,null,"Octobre",{"$f":"IF($F$6<>\"Flandre\",\"\",Données!H71)","v":""},"",{"$f":"IF($F$6<>\"Flandre\",\"\",'Résultats I'!$D$68)","v":""},"","",""]
[null,null,null,null,"Novembre",{"$f":"IF($F$6<>\"Flandre\",\"\",Données!H72)","v":""},"",{"$f":"IF($F$6<>\"Flandre\",\"\",'Résultats I'!$D$68)","v":""},"","",""]
[null,null,null,null,"Décembre",{"$f":"IF($F$6<>\"Flandre\",\"\",Données!H73)","v":""},"",{"$f":"IF($F$6<>\"Flandre\",\"\",'Résultats I'!$D$68)","v":""},"","",""]
[]
[null,null,null,null,null,null,null,null,"Total terme pour surcharge pour les taxes \"pylônes\" et \"tranchées\" :  ",{"$f":"SUM(J341:J352)","v":0},"€"]
[]
[null,null,null,null,null,null,null,null,"Total pour obligations de service public & taxes et surcharges :  ",{"$f":"J297+J316+J335+J354","v":0},"€"]
[]
[]
[]
[null,"Total annuel (hors obligations de service public & taxes et surcharges) :  ",null,null,null,null,null,null,null,{"$f":"J60+J79+J105+J124","v":0},"€"]
[]
[null,"Total obligations de service public & taxes et surcharges :  ",null,null,null,null,null,null,null,{"$f":"J235+J356","v":0},"€"]
[]
[null,"Total annuel (avec obligations de service public & taxes et surcharges hors exonération premier terme et facturation second terme  des mesures de soutien aux énergies renouvelables (Wallonie)):  ",null,null,null,null,null,null,null,{"$f":"J360+J362","v":0},"€"]
[]
[]
[]
[null,"Total exonération premier terme et facturation second terme  des mesures de soutien aux énergies renouvelables (Wallonie):",null,null,null,null,null,null,null,{"$f":"$J$279","v":0},"€"]
[]
[null,"Total annuel (avec obligations de service public & taxes et surcharges avec exonération et second terme  des mesures de soutien aux énergies renouvelables (Wallonie)):  ",null,null,null,null,null,null,null,{"$f":"J364+J368","v":0},"€"]

{"sheet":"Tarifs","index":4,"n_rows":130,"n_cols":7,"rows_kept":130,"cut":false,"hidden":false,"merged":[[127,3,127,4],[128,3,128,4],[129,3,129,4],[32,3,32,4],[33,3,33,4],[40,3,40,4],[41,3,41,4],[46,3,46,4],[47,3,47,4],[53,3,53,4],[54,3,54,4],[55,3,55,4],[62,3,62,4],[63,3,63,4],[64,3,64,4],[69,3,69,4],[8,3,8,4],[9,3,9,4],[10,3,10,4],[15,3,15,4],[16,3,16,4],[17,3,17,4],[23,3,23,4],[24,3,24,4],[25,3,25,4],[31,3,31,4],[70,3,70,4],[71,3,71,4],[76,3,76,4],[99,3,99,4],[115,3,115,4],[77,3,77,4],[78,3,78,4],[83,3,83,4],[113,3,113,4],[84,3,84,4],[85,3,85,4],[90,3,90,4],[91,3,91,4],[92,3,92,4],[98,3,98,4],[122,3,122,4],[100,3,100,4],[106,3,106,4],[107,3,107,4],[108,3,108,4],[114,3,114,4],[120,3,120,4],[121,3,121,4]]}
[]
[null,"TARIFS"]
[]
[]
[null,"A. Les tarifs pour la gestion et le développement de l’infrastructure de réseau "]
[]
[null,null,"1. Les tarifs pour la pointe mensuelle"]
[null,null,null,null,null,"€/kW net prélevé par mois"]
[null,null,null,"En réseau 380/220/150 kV",null,0.21829999999999999]
[null,null,null,"En réseau 70/36/30 kV",null,0.39019999999999999]
[null,null,null,"A la sortie des transformations vers Moyenne Tension",null,0.55940000000000001]
[]
[]
[null,null,"2. Les tarifs pour la pointe annuelle"]
[null,null,null,null,null,"€/kW net prélevé par an"]
[null,null,null,"En réseau 380/220/150 kV",null,5.8052000000000001]
[null,null,null,"En réseau 70/36/30 kV",null,10.003]
[null,null,null,"A la sortie des transformations vers Moyenne Tension",null,14.0779]
[]
[]
[null,null,"3. Les tarifs pour la puissance mise à disposition"]
[null,null,null,null,null,"PA principal","PA complémentaire"]
[null,null,null,null,null,"€/kVA au prélèvement par an","€/kVA au prélèvement par an"]
[null,null,null,"En réseau 380/220/150 kV",null,4.5052000000000003,0.90100000000000002]
[null,null,null,"En réseau 70/36/30 kV",null,8.6716999999999995,1.7343]
[null,null,null,"A la sortie des transformations vers Moyenne Tension",null,15.768700000000001,3.1537000000000002]
[]
[]
[null,"B. Les tarifs de gestion du système électrique"]
[]
[null,null,null,null,null,"€/MWh net prélevé"]
[null,null,null,"En réseau 380/220/150 kV",null,0.90739999999999998]
[null,null,null,"En réseau 70/36/30 kV",null,1.4303999999999999]
[null,null,null,"A la sortie des transformations vers Moyenne Tension",null,2.2368000000000001]
[]
[]
[null,"C. Les tarifs pour les réserves de puissance et le black-start"]
[]
[null,null,"1. sur base du prélèvement"]
[null,null,null,null,null,"€/MWh net prélevé"]
[null,null,null,"En réseau 380/220/150 kV",null,0.68789999999999996]
[null,null,null,"En réseau 70/36/30 kV",null,0.68789999999999996]
[null,null,null,"A la sortie des transformations vers Moyenne Tension",null,0.68789999999999996]
[]
[null,null,"2. sur base de l’injection"]
[null,null,null,null,null,"€/MWh net injecté"]
[null,null,null,"En réseau 380/220/150 kV",null,0.6169]
[null,null,null,"En réseau 70/36/30 kV",null,0.6169]
[null,null,null,"A la sortie des transformations vers Moyenne Tension",null,0.6169]
[]
[]
[null,"D. Les tarifs pour l’intégration du marché"]
[null,null,null,null,null,"€/MWh net prélevé"]
[null,null,null,"En réseau 380/220/150 kV",null,0.36820000000000003]
[null,null,null,"En réseau 70/36/30 kV",null,0.36820000000000003]
[null,null,null,"A la sortie des transformations vers Moyenne Tension",null,0.36820000000000003]
[]
[]
[null,"E. Tarifs pour obligations de service public"]
[]
[null,null,"1. Tarif pour obligations de service public pour le financement du raccordement des parcs éoliens offshore (fédéral)"]
[null,null,null,null,null,"€/MWh net prélevé"]
[null,null,null,"En réseau 380/220/150 kV",null,0.1188]
[null,null,null,"En réseau 70/36/30 kV",null,0.1188]
[null,null,null,"A la sortie des transformations vers Moyenne Tension",null,0.1188]
[]
[]
[null,null,"2. Tarif  pour obligations de service public pour le financement de certificats verts (fédéral)"]
[null,null,null,null,null,"€/MWh net prélevé"]
[null,null,null,"En réseau 380/220/150 kV",null,9.0140999999999991]
[null,null,null,"En réseau 70/36/30 kV",null,9.0140999999999991]
[null,null,null,"A la sortie des transformations vers Moyenne Tension",null,9.0140999999999991]
[]
[]
[null,null,"3. Tarif pour obligations de service public pour le financement des Réserves Stratégiques (fédéral)"]
[null,null,null,null,null,"€/MWh net prélevé"]
[null,null,null,"En réseau 380/220/150 kV",null,0]
[null,null,null,"En réseau 70/36/30 kV",null,0]
[null,null,null,"A la sortie des transformations vers Moyenne Tension",null,0]
[]
[]
[null,null,"4. Tarif pour obligations de service public pour le financement des mesures de soutien aux énergies renouvelables et cogénération en Flandre"]
[null,null,null,null,null,"€/MWh net prélevé"]
[null,null,null,"En réseau 380/220/150 kV",null,0]
[null,null,null,"En réseau 70/36/30 kV",null,0.16089999999999999]
[null,null,null,"A la sortie des transformations vers Moyenne Tension",null,0.16089999999999999]
[]
[]
[null,null,"5. Tarif pour obligations de service public pour le financement des mesures de promotion de l’utilisation rationnelle de l’énergie en Flandre"]
[null,null,null,null,null,"€/MWh net prélevé"]
[null,null,null,"En réseau 380/220/150 kV",null,0]
[null,null,null,"En réseau 70/36/30 kV",null,0]
[null,null,null,"A la sortie des transformations vers Moyenne Tension",null,0]
[]
[]
[null,null,"6. Tarif pour obligations de service public pour le financement des mesures de soutien aux énergies renouvelables en Wallonie"]
[null,null,null,null,null,"Premier terme","Second terme"]
[null,null,null,null,null,"€/MWh net prélevé","€/MWh exonéré"]
[null,null,null,"En réseau 380/220/150 kV",null,0,0]
[null,null,null,"En réseau 70/36/30 kV",null,13.815900000000001,0]
[null,null,null,"A la sortie des transformations vers Moyenne Tension",null,13.815900000000001,0]
[]
[null,"F. Taxes et Surcharges"]
[]
[null,null,"1. Cotisation fédérale "]
[null,null,null,null,null,"€/MWh net prélevé"]
[null,null,null,"En réseau 380/220/150 kV",null,3.1427999999999998]
[null,null,null,"En réseau 70/36/30 kV",null,3.1427999999999998]
[null,null,null,"A la sortie des transformations vers Moyenne Tension",null,3.1427999999999998]
[]
[]
[null,null,"2. Surcharge pour occupation du domaine public en Wallonie"]
[null,null,null,null,null,"€/MWh net prélevé"]
[null,null,null,"En réseau 380/220/150 kV",null,0]
[null,null,null,"En réseau 70/36/30 kV",null,0.33779999999999999]
[null,null,null,"A la sortie des transformations vers Moyenne Tension",null,0.33779999999999999]
[]
[]
[null,null,"3. Redevance pour droit de voirie à Bruxelles Capitale"]
[null,null,null,null,null,"€/MWh net prélevé"]
[null,null,null,"En réseau 380/220/150 kV",null,3.5084]
[null,null,null,"En réseau 70/36/30 kV",null,3.5084]
[null,null,null,"A la sortie des transformations vers Moyenne Tension",null,0]
[]
[]
[null,null,"4. Surcharge pour les taxes \"pylônes\" et \"tranchées\" en Flandre"]
[null,null,null,null,null,"€/MWh net prélevé"]
[null,null,null,"En réseau 380/220/150 kV",null,0.14410000000000001]
[null,null,null,"En réseau 70/36/30 kV",null,0.14410000000000001]
[null,null,null,"A la sortie des transformations vers Moyenne Tension",null,0.14410000000000001]